bitfinex/quotes_SOLUSD_20220113
["timestamp","ask_amount","ask_price","bid_price","bid_amount"]
[1642042802775,6.51,149.38,149.34,22.9745]
[1642042803174,6.26,149.38,149.34,22.9745]
[1642042803576,0.26,149.38,149.34,22.9745]
[1642042803974,0.26,149.4,149.34,23.2245]
[1642042804375,0.26,149.4,149.34,22.9745]
[1642042804575,0.51,149.41,149.33,592.1943]
[1642042804776,2.678,149.39,149.33,592.1943]
[1642042804976,6.0,149.38,149.33,592.1943]
[1642042805176,2.678,149.37,149.33,592.1943]
[1642042805376,6.26,149.38,149.33,592.1943]
[1642042805577,0.26,149.36,149.33,616.78395741]
[1642042806083,0.26,149.36,149.33,592.1943]
[1642042806276,0.26,149.37,149.33,592.1943]
[1642042807678,0.26,149.37,149.34,27.18275047]
[1642042807879,0.26,149.37,149.33,592.1943]
[1642042808080,6.26,149.37,149.33,592.1943]
[1642042808278,6.51,149.37,149.33,592.1943]
[1642042808681,0.51,149.37,149.33,592.1943]
[1642042808882,6.0,149.36,149.33,592.1943]
[1642042809079,0.51,149.37,149.33,592.1943]
[1642042809280,0.26,149.35,149.33,592.1943]
[1642042809483,0.51,149.37,149.33,592.1943]
[1642042810281,0.26,149.37,149.33,592.1943]
[1642042811387,0.26,149.37,149.33,498.9943]
[1642042811585,2.678,149.36,149.33,498.9943]
[1642042811783,2.928,149.36,149.33,498.9943]
[1642042811984,6.26,149.35,149.33,498.9943]
[1642042812185,16.5569,149.35,149.33,498.9943]
[1642042812783,23.0199,149.35,149.33,498.9943]
[1642042812985,32.678,149.34,149.33,485.8222]
[1642042813184,42.9777,149.34,149.33,485.8222]
[1642042813384,49.2377,149.34,149.33,485.8222]
[1642042814687,19.2377,149.34,149.33,485.8222]
[1642042815491,18.9877,149.34,149.33,485.8222]
[1642042815689,6.26,149.34,149.33,485.8222]
[1642042816589,0.26,149.34,149.33,485.8222]
[1642042816789,0.51,149.34,149.33,485.8222]
[1642042817991,6.51,149.34,149.33,485.8222]
[1642042819916,9.188,149.34,149.33,485.8222]
[1642042820516,6.51,149.34,149.33,485.8222]
[1642042824824,16.5572,149.34,149.33,485.8222]
[1642042827325,6.51,149.34,149.33,485.8222]
[1642042828631,6.0,149.34,149.33,488.85439997]
[1642042829428,6.0,149.34,149.33,491.88659993]
[1642042829830,2.678,149.39,149.33,491.88659993]
[1642042830030,6.26,149.34,149.33,491.88659993]
[1642042830231,6.51,149.34,149.33,491.88659993]
[1642042831033,0.51,149.34,149.33,491.88659993]
[1642042831333,0.51,149.34,149.33,485.8222]
[1642042831733,0.51,149.34,149.33,488.85439996]
[1642042831933,0.51,149.34,149.33,485.8222]
[1642042832130,6.51,149.34,149.33,485.8222]
[1642042833933,16.5575,149.34,149.33,485.8222]
[1642042834237,19.2355,149.34,149.33,485.8222]
[1642042835335,48.36756344,149.34,149.33,485.8222]
[1642042835536,48.10756344,149.34,149.33,485.8222]
[1642042835936,57.60756344,149.34,149.33,485.8222]
[1642042836739,51.60756344,149.34,149.33,395.3922]
[1642042836939,51.60756344,149.34,149.33,160.21195742]
[1642042836940,264.50756344,149.34,149.33,160.21195742]
[1642042837138,264.50756344,149.34,149.33,120.15785742]
[1642042837139,253.1912748,149.34,149.33,120.15785742]
[1642042837338,260.19968767,149.34,149.33,120.15785742]
[1642042837539,260.19968767,149.34,149.33,53.13385742]
[1642042837939,260.19968767,149.34,149.24,1.9083446]
[1642042838141,33.5088,149.31,149.21,0.33496868]
[1642042838341,10.0527,149.28,149.21,0.33496868]
[1642042838568,15.5,149.27,149.21,0.33496868]
[1642042838773,18.69,149.27,149.21,0.33496868]
[1642042839470,10.0554,149.24,149.21,0.33496868]
[1642042839669,9.5,149.23,149.21,0.33496868]
[1642042839868,15.76,149.23,149.21,0.33496868]
[1642042840069,16.01,149.23,149.21,0.33496868]
[1642042840470,3.76,149.23,149.21,0.33496868]
[1642042840672,9.5,149.28,149.22,67.06439993]
[1642042840870,12.18,149.3,149.22,67.06439993]
[1642042841170,6.0,149.29,149.22,67.31439993]
[1642042841372,9.5,149.28,149.22,90.04942825]
[1642042841572,6.0,149.27,149.22,90.04942825]
[1642042841775,6.0,149.27,149.22,90.29942825]
[1642042842173,6.0,149.27,149.22,67.31439993]
[1642042842372,0.26,149.26,149.22,67.31439993]
[1642042842571,6.0,149.28,149.22,67.31439993]
[1642042842771,0.26,149.27,149.22,67.31439993]
[1642042843772,0.26,149.27,149.23,25.58834448]
[1642042844174,6.26,149.27,149.23,25.58834448]
[1642042844376,9.5,149.29,149.23,25.58834448]
[1642042844574,6.0,149.28,149.23,25.58834448]
[1642042844775,6.0,149.28,149.23,25.83834448]
[1642042845276,6.0,149.3,149.23,25.83834448]
[1642042845477,10.0496,149.32,149.23,25.83834448]
[1642042845875,15.5,149.31,149.23,35.88754448]
[1642042846276,25.5498,149.31,149.24,23.3503]
[1642042846476,28.4778,149.31,149.24,23.3503]
[1642042847277,15.75,149.31,149.24,23.6003]
[1642042848180,159.19980222,149.37,149.24,100.5788]
[1642042848181,10.0477,149.35,149.24,100.5788]
[1642042848478,41.65149289,149.37,149.26,31.88387305]
[1642042848681,41.65149289,149.37,149.27,22.8052]
[1642042849279,41.90149289,149.37,149.27,22.8052]
[1642042849484,0.26,149.36,149.27,22.8052]
[1642042849681,12.7256,149.35,149.27,22.8052]
[1642042849881,23.43050058,149.34,149.27,22.8052]
[1642042850281,6.0,149.33,149.27,23.0552]
[1642042850683,0.25,149.33,149.27,23.0552]
[1642042851085,23.68050058,149.34,149.27,22.8052]
[1642042851585,0.26,149.33,149.27,22.8052]
[1642042851885,8.938,149.33,149.27,22.8052]
[1642042852087,18.438,149.33,149.27,22.8052]
[1642042852286,18.688,149.33,149.27,22.8052]
[1642042852886,28.7365,149.33,149.27,22.8052]
[1642042853287,18.688,149.33,149.27,22.8052]
[1642042853487,12.688,149.33,149.27,23.0552]
[1642042853789,0.26,149.33,149.27,23.0552]
[1642042853988,6.0,149.36,149.27,23.0552]
[1642042854188,6.51,149.36,149.27,23.0552]
[1642042854388,6.51,149.36,149.28,6.26]
[1642042854591,9.188,149.36,149.29,40.85078863]
[1642042854789,0.51,149.36,149.29,41.10078863]
[1642042854989,0.25,149.36,149.29,41.10078863]
[1642042855490,2.678,149.36,149.3,22.9902]
[1642042855689,2.928,149.36,149.3,22.9902]
[1642042855891,2.678,149.36,149.3,22.9902]
[1642042856290,2.678,149.36,149.3,23.2402]
[1642042856692,2.938,149.37,149.3,22.9902]
[1642042856892,0.26,149.37,149.3,22.9902]
[1642042857322,0.26,149.37,149.3,33.2846]
[1642042857491,0.26,149.37,149.31,6.0]
[1642042857695,9.5,149.39,149.31,6.25]
[1642042857893,9.5,149.41,149.32,24.1731]
[1642042858097,8.678,149.4,149.33,22.63202997]
[1642042858494,8.678,149.4,149.33,22.88202997]
[1642042858894,0.26,149.39,149.33,22.88202997]
[1642042859796,2.678,149.4,149.33,22.88202997]
[1642042859995,19.5431,149.41,149.33,22.88202997]
[1642042860798,19.5431,149.41,149.34,23.3983]
[1642042860999,0.26,149.4,149.34,23.3983]
[1642042861198,0.26,149.4,149.34,23.6483]
[1642042861399,2.678,149.42,149.34,23.3983]
[1642042861598,6.26,149.41,149.34,23.3983]
[1642042861798,2.677,149.4,149.34,23.3983]
[1642042862201,2.927,149.4,149.34,23.3983]
[1642042862799,26.47090941,149.4,149.34,23.3983]
[1642042863500,6.0,149.39,149.34,23.3983]
[1642042863701,6.25,149.39,149.34,23.3983]
[1642042864900,2.678,149.38,149.34,23.3983]
[1642042865100,12.178,149.43,149.34,23.6483]
[1642042865500,12.428,149.43,149.34,23.6483]
[1642042865699,12.428,149.43,149.35,31.38921843]
[1642042865900,12.428,149.43,149.36,34.8871]
[1642042866304,12.428,149.43,149.36,35.1371]
[1642042866704,41.49749181,149.43,149.36,35.1371]
[1642042867104,41.49749181,149.43,149.36,25.0967]
[1642042867308,6.0,149.42,149.36,25.0967]
[1642042867506,6.26,149.42,149.36,25.0967]
[1642042867706,6.51,149.42,149.36,25.0967]
[1642042868006,0.25,149.42,149.36,25.0967]
[1642042868406,0.25,149.42,149.36,35.1371]
[1642042868809,0.25,149.43,149.36,35.1371]
[1642042869009,2.677,149.42,149.36,35.1371]
[1642042869207,2.927,149.42,149.36,35.1371]
[1642042869407,0.26,149.41,149.36,35.1371]
[1642042869809,0.26,149.41,149.36,25.0967]
[1642042871010,2.927,149.42,149.36,25.0967]
[1642042872011,2.927,149.42,149.36,35.1369]
[1642042872212,6.0,149.41,149.36,25.0967]
[1642042872632,6.25,149.41,149.36,25.0967]
[1642042873133,0.25,149.41,149.36,25.0967]
[1642042873836,0.26,149.41,149.36,25.0967]
[1642042875236,6.26,149.41,149.36,25.0967]
[1642042875435,6.51,149.41,149.36,25.0967]
[1642042877037,34.26735587,149.41,149.36,25.0967]
[1642042880244,12.177,149.4,149.36,25.0967]
[1642042880643,12.427,149.4,149.36,25.0967]
[1642042881747,0.26,149.39,149.36,25.0967]
[1642042882945,6.26,149.39,149.37,6.06439993]
[1642042883142,6.26,149.39,149.37,3.03219996]
[1642042883442,6.26,149.39,149.36,25.0967]
[1642042884647,6.26,149.39,149.37,6.06439993]
[1642042885648,0.26,149.39,149.36,25.0967]
[1642042886644,0.26,149.39,149.36,24.8467]
[1642042886844,9.5,149.38,149.31,34.3639]
[1642042887044,12.178,149.38,149.31,24.3205]
[1642042887242,37.10265141,149.38,149.31,24.3205]
[1642042888149,12.428,149.38,149.31,24.5705]
[1642042888845,12.428,149.38,149.31,24.3205]
[1642042889046,6.0,149.37,149.28,1.9083446]
[1642042889246,12.178,149.36,149.28,1.9083446]
[1642042889650,6.26,149.35,149.28,1.9083446]
[1642042889851,2.678,149.34,149.28,1.9083446]
[1642042890150,2.928,149.34,149.28,1.9083446]
[1642042890353,2.928,149.34,149.27,22.7561]
[1642042890752,2.928,149.34,149.27,23.0061]
[1642042891149,2.928,149.34,149.27,89.9361]
[1642042891350,0.25,149.34,149.27,89.9361]
[1642042891749,2.928,149.35,149.27,89.9361]
[1642042892953,2.928,149.35,149.27,99.9825]
[1642042894054,2.678,149.35,149.27,99.9825]
[1642042894452,0.26,149.34,149.27,99.9825]
[1642042895053,9.5,149.36,149.27,99.9825]
[1642042895257,0.26,149.35,149.27,99.9825]
[1642042895957,0.26,149.35,149.27,32.8025]
[1642042896554,2.678,149.34,149.27,32.8025]
[1642042896759,8.938,149.35,149.27,32.8025]
[1642042896957,6.51,149.35,149.27,32.8025]
[1642042897159,0.51,149.35,149.27,33.0525]
[1642042897560,10.01,149.35,149.27,33.0525]
[1642042902895,10.01,149.35,149.3,10.0445]
[1642042903096,2.678,149.38,149.3,10.0445]
[1642042903298,2.678,149.38,149.31,24.6145]
[1642042903499,2.928,149.38,149.31,24.6145]
[1642042903698,2.928,149.38,149.31,24.8645]
[1642042904398,12.9731,149.38,149.31,24.8645]
[1642042904800,2.928,149.38,149.31,24.8645]
[1642042905800,0.26,149.37,149.31,24.8645]
[1642042907201,6.0,149.38,149.31,24.8645]
[1642042907702,6.25,149.38,149.31,24.8645]
[1642042908402,2.678,149.37,149.31,24.8645]
[1642042908702,2.928,149.37,149.31,24.8645]
[1642042909831,0.25,149.37,149.31,24.8645]
[1642042910005,0.25,149.37,149.31,34.9082]
[1642042910206,8.928,149.38,149.31,34.9082]
[1642042910404,6.25,149.38,149.31,34.9082]
[1642042910605,9.5,149.39,149.31,34.9082]
[1642042910806,2.678,149.4,149.32,0.26]
[1642042911206,2.928,149.4,149.33,10.0422]
[1642042911409,2.928,149.4,149.33,35.31947142]
[1642042911707,2.928,149.4,149.33,35.56947142]
[1642042911906,0.26,149.39,149.33,35.56947142]
[1642042912406,0.26,149.39,149.33,35.31947142]
[1642042912607,0.26,149.39,149.33,35.56947142]
[1642042912810,2.928,149.4,149.33,35.56947142]
[1642042914307,0.26,149.39,149.33,35.56947142]
[1642042916307,0.26,149.39,149.33,10.2922]
[1642042917938,2.928,149.4,149.33,10.2922]
[1642042918338,2.678,149.4,149.34,0.26]
[1642042918545,1.76569469,149.41,149.34,98.65866566]
[1642042918740,1.76569469,149.41,149.35,33.0989]
[1642042918944,6.0,149.4,149.36,0.26]
[1642042919743,6.0,149.4,149.35,33.3489]
[1642042919942,6.0,149.4,149.35,23.0583]
[1642042920142,2.677,149.39,149.35,23.0583]
[1642042920543,2.927,149.39,149.35,23.0583]
[1642042921041,0.25,149.39,149.35,23.0583]
[1642042921243,0.25,149.39,149.32,74.6473]
[1642042921446,2.678,149.38,149.32,74.6473]
[1642042921642,2.928,149.38,149.32,74.6473]
[1642042921845,6.0,149.37,149.32,74.6473]
[1642042922243,6.25,149.37,149.32,74.6473]
[1642042922644,6.0,149.37,149.32,84.9403]
[1642042922943,0.26,149.39,149.32,84.9403]
[1642042923147,0.25,149.38,149.32,84.9403]
[1642042923644,0.25,149.38,149.33,24.4116]
[1642042924042,0.25,149.38,149.33,24.6616]
[1642042924244,3.188,149.39,149.33,24.6616]
[1642042924447,6.0,149.38,149.33,0.25]
[1642042924646,6.25,149.38,149.32,74.6473]
[1642042924848,2.678,149.37,149.29,25.2699446]
[1642042925045,6.0,149.36,149.29,25.2699446]
[1642042925246,2.678,149.35,149.29,25.2699446]
[1642042925452,12.725,149.35,149.29,1.9083446]
[1642042925648,6.0,149.34,149.29,1.9083446]
[1642042925849,2.678,149.33,149.29,1.9083446]
[1642042926047,6.0,149.32,149.29,1.9083446]
[1642042926248,6.25,149.32,149.29,1.9083446]
[1642042926448,6.25,149.32,149.26,24.63377276]
[1642042926648,6.25,149.32,149.26,24.88377276]
[1642042926848,0.25,149.32,149.26,24.88377276]
[1642042927055,6.0,149.31,149.26,24.88377276]
[1642042927249,6.25,149.31,149.26,24.88377276]
[1642042927549,0.25,149.31,149.26,24.88377276]
[1642042928349,6.0,149.32,149.26,24.88377276]
[1642042928350,6.25,149.32,149.26,24.88377276]
[1642042928951,0.26,149.31,149.26,24.88377276]
[1642042931449,0.25,149.32,149.26,34.93097276]
[1642042931649,6.0,149.33,149.26,34.93097276]
[1642042931650,6.0,149.31,149.26,34.93097276]
[1642042932256,6.0,149.34,149.26,34.93097276]
[1642042932450,0.26,149.33,149.26,34.93097276]
[1642042933151,0.26,149.33,149.27,24.2787]
[1642042933554,0.26,149.33,149.27,34.5752]
[1642042934356,6.25,149.34,149.27,34.5752]
[1642042935859,0.26,149.33,149.27,34.5752]
[1642042936257,6.25,149.34,149.27,34.5752]
[1642042936459,2.678,149.33,149.27,24.5287]
[1642042936660,2.928,149.33,149.27,24.5287]
[1642042936859,6.0,149.32,149.27,24.5287]
[1642042937262,6.25,149.32,149.27,24.5287]
[1642042937461,0.25,149.32,149.27,24.5287]
[1642042937759,6.26,149.31,149.27,24.5287]
[1642042937960,0.25,149.32,149.27,24.5287]
[1642042938260,6.25,149.33,149.27,24.5287]
[1642042941266,8.678,149.33,149.28,23.11660369]
[1642042941466,6.0,149.33,149.28,23.11660369]
[1642042941667,6.0,149.33,149.28,23.36660369]
[1642042942669,6.0,149.33,149.28,23.11660369]
[1642042943872,6.0,149.33,149.28,33.16250369]
[1642042944068,6.0,149.33,149.28,33.41250369]
[1642042944270,6.0,149.35,149.28,33.41250369]
[1642042944569,6.0,149.35,149.29,24.6054]
[1642042944772,6.25,149.35,149.29,24.8554]
[1642042944972,0.25,149.35,149.29,24.8554]
[1642042945176,6.0,149.34,149.29,24.8554]
[1642042945574,0.25,149.35,149.29,24.8554]
[1642042945774,6.25,149.36,149.29,34.9004]
[1642042947476,0.26,149.35,149.29,34.9004]
[1642042948076,2.678,149.37,149.29,34.9004]
[1642042948279,2.678,149.38,149.3,0.26]
[1642042948477,6.0,149.36,149.32,10.0429]
[1642042948676,6.0,149.37,149.32,10.2929]
[1642042948877,6.0,149.38,149.33,22.64785387]
[1642042949377,6.25,149.38,149.33,22.89785387]
[1642042953104,12.178,149.39,149.33,22.89785387]
[1642042953302,4.44369469,149.41,149.33,32.94025387]
[1642042953503,1.76569469,149.41,149.34,25.0922]
[1642042953703,2.01569469,149.41,149.34,25.3422]
[1642042954804,2.01569469,149.41,149.36,10.0403]
[1642042955009,2.01569469,149.41,149.37,25.68672841]
[1642042955205,2.01569469,149.41,149.37,25.93672841]
[1642042955405,0.25,149.41,149.37,25.93672841]
[1642042955705,4.69269469,149.43,149.37,25.93672841]
[1642042955907,0.26,149.42,149.37,25.93672841]
[1642042958206,2.927,149.43,149.37,25.93672841]
[1642042959007,2.927,149.43,149.37,35.97642841]
[1642042959206,2.677,149.43,149.37,35.97642841]
[1642042959407,1.76569469,149.45,149.38,0.26]
[1642042959607,6.0,149.44,149.38,0.26]
[1642042960007,6.0,149.44,149.39,10.0383]
[1642042960210,6.0,149.44,149.4,24.00447535]
[1642042960409,3.80237558,149.49,149.41,65.0]
[1642042960609,0.00237558,149.49,149.43,66.93]
[1642042961008,0.00237558,149.49,149.44,0.26]
[1642042961509,12.7089,149.56,149.45,10.0329]
[1642042961710,12.7089,149.56,149.46,29.57942949]
[1642042961909,0.26,149.55,149.46,29.57942949]
[1642042962108,27.88207896,149.54,149.46,29.82942949]
[1642042962508,0.26,149.53,149.46,29.82942949]
[1642042962712,2.674,149.52,149.46,10.2833]
[1642042963411,2.674,149.52,149.47,0.26]
[1642042963612,2.674,149.57,149.47,0.26]
[1642042963814,9.5,149.58,149.49,10.0316]
[1642042964012,9.5,149.58,149.5,29.42408141]
[1642042964312,9.5,149.58,149.5,29.67408141]
[1642042964711,9.5,149.58,149.5,53.45798141]
[1642042964915,9.5,149.58,149.51,10.2903]
[1642042965112,12.174,149.58,149.51,10.2903]
[1642042965315,12.424,149.58,149.51,77.4703]
[1642042965513,9.75,149.58,149.51,77.4703]
[1642042965712,9.5,149.58,149.51,77.4703]
[1642042966119,9.5,149.58,149.51,10.5403]
[1642042966520,0.26,149.57,149.51,10.5403]
[1642042967321,0.26,149.57,149.51,10.0303]
[1642042967520,0.26,149.57,149.51,10.2803]
[1642042969522,0.26,149.57,149.51,0.25]
[1642042969822,0.26,149.57,149.5,34.065]
[1642042970022,2.934,149.57,149.5,34.065]
[1642042970224,3.184,149.57,149.5,34.065]
[1642042971028,0.51,149.57,149.5,34.065]
[1642042971425,0.26,149.57,149.5,34.065]
[1642042971627,12.424,149.58,149.5,34.065]
[1642042971828,9.75,149.58,149.5,34.065]
[1642042972026,12.424,149.58,149.5,34.065]
[1642042975431,0.26,149.57,149.5,34.065]
[1642042976433,0.26,149.57,149.51,10.03]
[1642042976633,0.26,149.57,149.52,31.71465103]
[1642042977036,9.01,149.58,149.53,43.0]
[1642042977760,11.684,149.58,149.53,43.0]
[1642042978163,11.684,149.58,149.52,0.25]
[1642042978362,9.01,149.58,149.5,34.0644]
[1642042979060,9.01,149.58,149.5,56.9509688]
[1642042979862,19.0411,149.58,149.5,56.9509688]
[1642042980669,19.0411,149.58,149.5,24.0339]
[1642042981067,12.7064,149.57,149.5,23.7839]
[1642042981264,12.9564,149.57,149.5,24.0339]
[1642042981665,2.924,149.57,149.51,26.45763363]
[1642042982166,2.924,149.57,149.51,26.70763363]
[1642042982466,2.924,149.57,149.51,26.45763363]
[1642042982666,12.424,149.57,149.44,139.2387]
[1642042982868,6.0,149.56,149.44,139.2387]
[1642042983066,12.174,149.55,149.44,139.2387]
[1642042983270,12.424,149.55,149.44,66.93]
[1642042983469,6.0,149.54,149.44,66.93]
[1642042983673,2.674,149.53,149.45,27.83044459]
[1642042983867,12.7086,149.53,149.45,27.83044459]
[1642042984069,2.924,149.53,149.45,27.83044459]
[1642042984669,2.924,149.53,149.45,28.08044459]
[1642042984867,2.924,149.53,149.45,38.11454459]
[1642042985074,0.25,149.53,149.46,23.2155]
[1642042985268,2.674,149.52,149.46,23.2155]
[1642042985469,2.674,149.53,149.46,23.2155]
[1642042985670,2.924,149.53,149.46,23.2155]
[1642042986768,2.924,149.53,149.46,23.4655]
[1642042986969,2.924,149.53,149.46,33.4992]
[1642042987867,0.25,149.53,149.46,33.4992]
[1642042988069,12.9578,149.54,149.46,23.2155]
[1642042988270,12.9578,149.54,149.4,98.1782]
[1642042988271,10.0362,149.51,149.4,198.5589]
[1642042988571,10.0362,149.51,149.41,6.0]
[1642042988769,10.0362,149.51,149.41,6.25]
[1642042988770,0.25,149.51,149.41,6.25]
[1642042988969,0.25,149.51,149.43,23.95041059]
[1642042989169,0.25,149.51,149.44,10.0349]
[1642042989369,18.176,149.53,149.44,10.0349]
[1642042989370,15.5,149.53,149.44,10.0349]
[1642042989569,18.424,149.53,149.44,10.2849]
[1642042989770,18.174,149.53,149.44,10.2849]
[1642042989970,15.5,149.53,149.44,10.2849]
[1642042990370,15.5,149.53,149.45,23.6692]
[1642042990571,15.5,149.53,149.47,10.0327]
[1642042990771,15.5,149.53,149.47,10.2827]
[1642042990972,15.5,149.53,149.48,0.26]
[1642042991178,6.0,149.53,149.48,0.26]
[1642042991573,6.0,149.55,149.48,0.26]
[1642042991771,6.0,149.55,149.48,76.9622]
[1642042991972,6.0,149.57,149.49,0.26]
[1642042992272,6.0,149.57,149.49,23.08680361]
[1642042992475,12.174,149.58,149.49,101.70380361]
[1642042992672,9.75,149.58,149.49,101.95380361]
[1642042992873,2.674,149.6,149.5,10.0308]
[1642042993072,12.174,149.62,149.51,29.8592]
[1642042993272,9.5,149.62,149.52,66.93]
[1642042993473,9.5,149.62,149.53,0.26]
[1642042993673,12.174,149.62,149.53,6.26]
[1642042994075,9.5,149.62,149.53,6.51]
[1642042994271,9.5,149.62,149.53,73.44]
[1642042994474,9.5,149.62,149.53,67.44]
[1642042994671,9.5,149.62,149.55,22.63469754]
[1642042994877,9.5,149.62,149.55,32.66229754]
[1642042995175,12.174,149.62,149.55,22.88469754]
[1642042995372,12.424,149.62,149.55,22.88469754]
[1642042995974,12.424,149.62,149.55,22.63469754]
[1642042996775,22.4526,149.62,149.55,22.63469754]
[1642042998984,19.7786,149.62,149.55,22.63469754]
[1642042999180,9.75,149.62,149.55,22.63469754]
[1642042999480,9.75,149.62,149.55,32.66229754]
[1642043000081,9.5,149.62,149.56,6.0]
[1642043000287,2.674,149.65,149.57,66.93]
[1642043000483,2.674,149.65,149.58,0.26]
[1642043000682,9.5,149.66,149.59,10.025]
[1642043000883,9.5,149.66,149.59,33.3537]
[1642043001082,9.5,149.66,149.61,28.90667805]
[1642043001486,9.5,149.66,149.62,6.0]
[1642043001885,2.673,149.7,149.62,6.25]
[1642043002083,9.5,149.73,149.63,0.26]
[1642043002284,9.5,149.73,149.63,78.4764]
[1642043002487,9.5,149.73,149.64,6.0]
[1642043002683,9.5,149.73,149.64,6.25]
[1642043002884,9.5,149.73,149.65,0.26]
[1642043003084,9.5,149.73,149.65,10.2806]
[1642043003386,6.0,149.72,149.63,78.2164]
[1642043003616,23.28814959,149.7,149.61,28.90667805]
[1642043003814,2.672,149.69,149.61,28.90667805]
[1642043004016,10.47677668,149.69,149.61,28.90667805]
[1642043004414,1.80477668,149.68,149.61,28.90667805]
[1642043004614,2.672,149.67,149.61,28.90667805]
[1642043004814,4.72677668,149.68,149.58,123.4439]
[1642043005015,2.05477668,149.67,149.58,123.4439]
[1642043005214,2.673,149.66,149.58,123.6939]
[1642043005414,2.05477668,149.67,149.58,48.4332]
[1642043005715,11.30477668,149.66,149.53,162.7268]
[1642043005916,19.97777668,149.66,149.55,26.15826661]
[1642043006323,2.673,149.66,149.57,66.93]
[1642043006520,79.1215,149.7,149.57,66.93]
[1642043006716,79.1215,149.7,149.58,102.2774]
[1642043006917,79.1215,149.7,149.58,169.4674]
[1642043007116,79.1215,149.7,149.58,169.7174]
[1642043007620,82.0445,149.7,149.58,169.7174]
[1642043007816,92.0681,149.7,149.61,10.0236]
[1642043008017,12.9466,149.7,149.62,26.27330238]
[1642043012918,12.9466,149.7,149.61,10.0237]
[1642043013117,10.0259,149.66,149.58,102.2774]
[1642043013319,2.673,149.65,149.58,79.5178]
[1642043013518,0.25,149.66,149.58,79.5178]
[1642043013818,0.25,149.65,149.58,79.7678]
[1642043014019,9.5,149.66,149.59,27.09265265]
[1642043014221,9.75,149.66,149.59,27.09265265]
[1642043014417,19.7758,149.66,149.59,27.09265265]
[1642043018325,9.5,149.66,149.59,27.34265265]
[1642043018527,9.5,149.69,149.59,27.34265265]
[1642043018726,9.5,149.69,149.59,51.55055265]
[1642043019330,9.5,149.69,149.59,61.57555265]
[1642043019529,9.5,149.69,149.6,0.26]
[1642043019728,9.75,149.69,149.6,0.26]
[1642043020930,19.774,149.69,149.6,10.2838]
[1642043021131,19.774,149.69,149.6,10.5338]
[1642043026361,9.75,149.69,149.6,10.5338]
[1642043026564,9.75,149.69,149.6,10.2838]
[1642043026964,9.75,149.69,149.6,77.2138]
[1642043027365,9.5,149.69,149.6,77.2138]
[1642043027564,9.5,149.69,149.61,24.5647]
[1642043027762,19.524,149.69,149.61,34.8381]
[1642043027963,9.5,149.69,149.62,0.26]
[1642043028662,9.75,149.69,149.62,0.26]
[1642043031965,19.774,149.69,149.62,0.26]
[1642043032866,19.774,149.69,149.61,101.7681]
[1642043033067,19.774,149.69,149.61,34.8381]
[1642043033669,19.774,149.69,149.61,34.5881]
[1642043033867,19.774,149.69,149.61,34.8381]
[1642043034066,19.774,149.69,149.61,34.5881]
[1642043034269,2.672,149.68,149.61,34.5881]